bitfinex/quotes_BTCUSD_20220303
["timestamp","ask_amount","ask_price","bid_price","bid_amount"]
[1646289587846,0.4917197,43398.0,43397.0,0.36430444]
[1646289588344,0.008294,43399.0,43397.0,0.36430444]
[1646289589145,0.008294,43399.0,43397.0,0.36930444]
[1646289589544,0.26809234,43399.0,43397.0,0.36930444]
[1646289590346,0.26809234,43399.0,43397.0,0.36430444]
[1646289591202,0.26809234,43399.0,43397.0,0.36930444]
[1646289595054,0.008294,43399.0,43397.0,0.36930444]
[1646289597856,0.008294,43399.0,43397.0,0.37430444]
[1646289598258,0.008294,43399.0,43397.0,0.38030444]
[1646289598695,0.008294,43399.0,43397.0,0.66476456]
[1646289599098,0.008294,43399.0,43397.0,0.36430444]
[1646289602582,0.21281293,43398.0,43397.0,0.36430444]
[1646289603187,0.21281293,43398.0,43396.0,0.00014861]
[1646289603188,1.1817995,43397.0,43396.0,0.00014861]
[1646289603383,1.1817995,43397.0,43392.0,0.01262735]
[1646289603384,1.21883661,43397.0,43392.0,0.01262735]
[1646289603583,0.05784978,43393.0,43392.0,0.01262735]
[1646289603781,1.21883661,43397.0,43392.0,0.01262735]
[1646289603981,1.21883661,43397.0,43396.0,0.003]
[1646289604385,1.03703711,43397.0,43396.0,0.003]
[1646289605184,1.03703711,43397.0,43392.0,0.01262735]
[1646289605484,0.19750531,43394.0,43392.0,0.01262735]
[1646289605683,1.03703711,43397.0,43396.0,0.31441201]
[1646289606103,1.24704164,43397.0,43396.0,0.31441201]
[1646289607007,1.03703711,43397.0,43396.0,0.31441201]
[1646289607305,1.0,43397.0,43396.0,0.31441201]
[1646289607907,1.18980404,43397.0,43396.0,0.31841201]
[1646289608305,1.38646974,43397.0,43396.0,0.31812513]
[1646289608907,1.1966657,43397.0,43396.0,0.31812513]
[1646289609107,0.21281293,43398.0,43396.0,0.31812513]
[1646289609311,0.21281293,43398.0,43396.0,0.31412513]
[1646289609955,0.21281293,43398.0,43396.0,0.31812513]
[1646289611255,0.24985004,43398.0,43396.0,0.31412513]
[1646289612059,0.39389465,43398.0,43396.0,0.31812513]
[1646289612254,0.21281293,43398.0,43396.0,0.31812513]
[1646289612455,0.008294,43399.0,43396.0,0.31812513]
[1646289613258,0.008294,43399.0,43397.0,0.35663342]
[1646289613455,0.008294,43399.0,43396.0,0.57495999]
[1646289613698,0.008294,43399.0,43396.0,0.31412513]
[1646289614099,0.008294,43399.0,43397.0,0.006]
[1646289614701,0.29524909,43399.0,43397.0,0.006]
[1646289615299,0.49286236,43399.0,43396.0,0.31412513]
[1646289615500,0.19535079,43397.0,43396.0,0.31429125]
[1646289616101,0.19535079,43397.0,43396.0,0.31929125]
[1646289616498,0.19535079,43397.0,43396.0,0.31912513]
[1646289617350,0.19535079,43397.0,43396.0,0.31412513]
[1646289619249,0.36523032,43397.0,43396.0,0.31412513]
[1646289619652,0.19535079,43397.0,43396.0,0.31412513]
[1646289620054,0.19535079,43397.0,43396.0,0.31812513]
[1646289620251,0.31812,43396.0,43392.0,0.01262735]
[1646289620454,0.31812,43396.0,43386.0,0.20326201]
[1646289620455,0.71308742,43395.0,43394.0,1.28e-06]
[1646289620653,0.81308742,43395.0,43394.0,1.28e-06]
[1646289620855,0.50303342,43395.0,43394.0,1.28e-06]
[1646289621309,0.50303342,43395.0,43381.0,0.01]
[1646289621511,0.03703711,43390.0,43381.0,0.01]
[1646289621708,0.16955455,43388.0,43381.0,0.01]
[1646289621905,0.23951178,43384.0,43381.0,0.01]
[1646289624109,0.35636428,43383.0,43381.0,0.01]
[1646289624310,0.23951178,43384.0,43381.0,0.01]
[1646289624510,0.18431484,43383.0,43381.0,0.01]
[1646289625367,0.24120399,43383.0,43381.0,0.01]
[1646289625764,0.59756827,43383.0,43381.0,0.01]
[1646289625963,0.24120399,43383.0,43381.0,0.01]
[1646289626164,0.18431484,43383.0,43381.0,0.01]
[1646289627169,0.18431484,43383.0,43381.0,0.005]
[1646289627367,0.35636428,43382.0,43381.0,0.005]
[1646289627567,0.25830294,43383.0,43381.0,0.005]
[1646289627966,0.35636428,43382.0,43381.0,0.005]
[1646289628467,0.18431484,43383.0,43381.0,0.005]
[1646289628901,0.23951178,43384.0,43381.0,0.005]
[1646289629306,0.24982,43387.0,43381.0,0.005]
[1646289629502,0.2383,43387.0,43381.0,0.005]
[1646289629815,0.1,43392.0,43381.0,0.005]
[1646289630004,0.1,43392.0,43382.0,0.00016181]
[1646289630309,0.27809871,43388.0,43382.0,0.00016181]
[1646289630504,0.63446299,43388.0,43382.0,0.00016181]
[1646289630905,0.1977112,43387.0,43382.0,0.00016181]
[1646289631104,0.63446299,43388.0,43381.0,0.005]
[1646289631304,0.63446299,43388.0,43383.0,0.00016181]
[1646289631510,0.17201885,43389.0,43383.0,0.00016181]
[1646289632104,0.34439769,43389.0,43383.0,0.00016181]
[1646289632363,0.34439769,43389.0,43384.0,0.00016181]
[1646289632560,0.17201885,43389.0,43384.0,0.00016181]
[1646289632760,0.35636428,43388.0,43384.0,0.00016181]
[1646289633360,0.35636428,43388.0,43381.0,0.005]
[1646289633559,0.35636428,43388.0,43384.0,0.00016181]
[1646289633761,0.17201885,43389.0,43384.0,0.00016181]
[1646289634060,0.52838313,43389.0,43384.0,0.00016181]
[1646289634464,0.17201885,43389.0,43384.0,0.00016181]
[1646289635566,0.52838313,43389.0,43384.0,0.00016181]
[1646289635765,0.58012,43395.0,43381.0,0.005]
[1646289635964,0.19235673,43392.0,43384.0,0.21314396]
[1646289637017,0.28397559,43389.0,43384.0,0.21298215]
[1646289637214,0.19235673,43392.0,43386.0,0.00016181]
[1646289638219,0.19235673,43392.0,43384.0,0.21298215]
[1646289638419,0.19235673,43392.0,43387.0,0.0001618]
[1646289638618,0.5686,43395.0,43387.0,0.0001618]
[1646289638821,0.5686,43395.0,43388.0,0.11296289]
[1646289639117,0.25533568,43398.0,43390.0,1.87663686]
[1646289639118,0.05,43398.0,43390.0,1.87663686]
[1646289639319,0.7955,43400.0,43390.0,1.87663686]
[1646289639518,0.008294,43399.0,43390.0,1.98976155]
[1646289639718,0.008294,43399.0,43393.0,0.19031989]
[1646289639966,0.008294,43399.0,43396.0,0.11296289]
[1646289644401,0.008294,43399.0,43394.0,0.0464]
[1646289644700,0.008294,43399.0,43394.0,0.15936289]
[1646289646200,0.008294,43399.0,43395.0,0.057625]
[1646289646399,0.008294,43399.0,43398.0,0.11296289]
[1646289647551,0.008294,43399.0,43393.0,0.19031989]
[1646289647552,0.008294,43399.0,43395.0,0.11296289]
[1646289648155,0.008294,43399.0,43393.0,0.23671989]
[1646289648455,0.008294,43399.0,43394.0,0.11296289]
[1646289648652,0.008294,43399.0,43394.0,0.15936289]
[1646289648852,0.008294,43399.0,43397.0,0.11296289]
[1646289649053,0.008294,43399.0,43395.0,0.057626]
[1646289649255,0.008294,43399.0,43398.0,0.11296289]
[1646289650255,0.008294,43399.0,43394.0,0.1]
[1646289650656,0.16648118,43398.0,43394.0,0.1]
[1646289650856,0.16648118,43398.0,43393.0,0.15936289]
[1646289651121,0.16648118,43398.0,43393.0,0.11296289]
[1646289651317,0.220742,43398.0,43392.0,0.00016181]
[1646289651515,0.16648118,43398.0,43388.0,0.15936289]
[1646289651715,0.16648118,43398.0,43392.0,0.0001618]
[1646289652617,0.16648118,43398.0,43388.0,0.25936289]
[1646289652814,0.16648118,43398.0,43388.0,0.15936289]
[1646289652815,0.28177018,43398.0,43388.0,0.15936289]
[1646289653217,0.22211442,43395.0,43388.0,0.11296289]
[1646289653417,0.22211442,43395.0,43388.0,0.31529632]
[1646289653817,0.27975342,43395.0,43388.0,0.31529632]
[1646289654116,0.057639,43395.0,43388.0,0.31529632]
[1646289655148,0.057639,43395.0,43389.0,0.00017273]
[1646289656156,0.057639,43395.0,43388.0,0.20233343]
[1646289656354,0.23276085,43397.0,43390.0,0.00017272]
[1646289656555,0.16648118,43398.0,43392.0,0.11296289]
[1646289657354,0.008294,43399.0,43392.0,0.11296289]
[1646289657554,0.008294,43399.0,43392.0,0.11313561]
[1646289658256,0.17905478,43399.0,43392.0,0.11313561]
[1646289658617,0.17905478,43399.0,43392.0,0.11296289]
[1646289658821,0.17905478,43399.0,43392.0,0.11313562]
[1646289659818,0.20289467,43393.0,43386.0,0.35790898]
[1646289660019,0.20289467,43393.0,43392.0,0.00016606]
[1646289660819,0.008294,43399.0,43392.0,0.11312895]
[1646289661020,0.008294,43399.0,43392.0,0.11296289]
[1646289661219,0.008294,43399.0,43392.0,0.15936289]
[1646289661917,0.008294,43399.0,43394.0,0.21524397]
[1646289662119,0.008294,43399.0,43395.0,0.057625]
[1646289663659,0.008294,43399.0,43395.0,0.11296289]
[1646289664259,0.20054463,43396.0,43395.0,0.11296289]
[1646289664660,0.20054463,43396.0,43392.0,0.04657259]
[1646289664661,0.27035472,43396.0,43386.0,0.11296289]
[1646289664860,0.21804929,43389.0,43386.0,0.11296289]
[1646289665461,0.43634089,43389.0,43386.0,0.11296289]
[1646289665659,0.2182916,43389.0,43386.0,0.11296289]
[1646289665858,0.06763574,43397.0,43393.0,0.03876008]
[1646289666107,0.35790898,43396.0,43393.0,0.03876008]
[1646289666510,0.18465487,43395.0,43393.0,0.03876008]
[1646289666715,0.35790898,43394.0,43393.0,0.03876008]
[1646289666910,0.59541606,43394.0,43393.0,0.03876008]
[1646289667120,0.21425572,43382.0,43381.0,0.005]
[1646289667312,0.05356662,43385.0,43381.0,0.005]
[1646289667510,0.2096,43389.0,43381.0,0.005]
[1646289668112,0.28589737,43383.0,43382.0,0.15961362]
[1646289668317,0.12302,43392.0,43382.0,0.15961362]
[1646289668318,0.05766,43385.0,43382.0,0.15961362]
[1646289668511,0.05766,43385.0,43383.0,0.00017184]
[1646289668714,0.3249,43392.0,43383.0,0.00017184]
[1646289669315,0.25675319,43386.0,43383.0,0.00017184]
[1646289669512,0.25675319,43386.0,43382.0,0.15961362]
[1646289669712,0.25675319,43386.0,43385.0,0.0001573]
[1646289669970,0.2464607,43391.0,43385.0,0.0001573]
[1646289670166,0.057648,43388.0,43385.0,0.0001573]
[1646289670565,0.057648,43388.0,43382.0,0.15961362]
[1646289670766,0.047648,43388.0,43384.0,0.00015731]
[1646289670973,0.59642545,43387.0,43384.0,0.00015731]
[1646289671269,0.356454,43385.0,43384.0,0.00015731]
[1646289671468,0.402854,43385.0,43384.0,0.00015731]
[1646289671666,0.1464,43385.0,43384.0,0.00015731]
[1646289671869,0.356454,43384.0,43381.0,0.005]
[1646289672067,0.0464,43383.0,43382.0,0.00015732]
[1646289673066,0.0464,43383.0,43381.0,0.005]
[1646289673467,0.157659,43384.0,43381.0,0.005]
[1646289673715,0.057659,43384.0,43381.0,0.005]
[1646289677875,0.23,43385.0,43381.0,0.11796289]
[1646289678077,0.23,43385.0,43384.0,0.11296289]
[1646289679279,0.23,43385.0,43384.0,0.51524987]
[1646289679683,0.23,43385.0,43384.0,0.25936289]
[1646289681120,0.23,43385.0,43384.0,0.26636289]
[1646289682225,0.23,43385.0,43384.0,0.25936289]
[1646289683023,0.23,43385.0,43384.0,0.26736289]
[1646289683626,0.23,43385.0,43384.0,0.62324987]
[1646289684026,0.05,43396.0,43385.0,1.20997687]
[1646289684227,0.233394,43399.0,43395.0,0.11296289]
[1646289684526,0.008294,43399.0,43397.0,0.25897516]
[1646289684729,0.008294,43399.0,43396.0,0.11296289]
[1646289685170,0.008294,43399.0,43395.0,0.007]
[1646289685371,0.065927,43399.0,43395.0,0.007]
[1646289685574,0.295927,43399.0,43395.0,0.007]
[1646289686171,0.295927,43399.0,43390.0,0.1]
[1646289686373,0.295927,43399.0,43392.0,0.00016082]
[1646289686571,0.17385225,43395.0,43392.0,0.00016082]
[1646289686971,0.295927,43399.0,43392.0,0.00616082]
[1646289687374,0.18911119,43396.0,43392.0,0.006]
[1646289687573,0.18911119,43396.0,43392.0,0.00616081]
[1646289687773,0.295927,43399.0,43392.0,0.00616081]
[1646289687976,0.05569834,43394.0,43392.0,0.00616081]
[1646289688275,0.22663964,43394.0,43392.0,0.00016081]
[1646289688475,0.057641,43394.0,43392.0,0.00016081]
[1646289688718,0.19189963,43393.0,43387.0,0.0464]
[1646289688919,0.21516954,43394.0,43391.0,0.00016081]
[1646289689117,0.21516954,43394.0,43392.0,0.005]
[1646289689619,0.057641,43394.0,43392.0,0.005]
[1646289690220,0.057641,43394.0,43391.0,0.00016081]
[1646289690421,0.05725988,43394.0,43391.0,0.00016081]
[1646289690621,0.065931,43399.0,43392.0,0.20693224]
[1646289690821,0.23586842,43396.0,43392.0,0.20693224]
[1646289691020,0.065931,43399.0,43392.0,0.20693224]
[1646289691222,0.065931,43399.0,43392.0,0.20709305]
[1646289691722,0.008294,43399.0,43392.0,0.20709305]
[1646289691921,0.008294,43399.0,43396.0,0.36898214]
[1646289692122,0.008294,43399.0,43396.0,0.36835481]
[1646289692966,0.008194,43399.0,43396.0,0.37535481]
[1646289694367,0.008194,43399.0,43396.0,0.11233556]
[1646289695072,0.008194,43399.0,43396.0,0.11833556]
[1646289695267,0.18067171,43397.0,43396.0,0.11833556]
[1646289695467,0.42993287,43397.0,43396.0,0.11833556]
[1646289695867,0.24926116,43397.0,43396.0,0.11833556]
[1646289696320,0.008194,43399.0,43396.0,0.11233556]
[1646289697920,0.18817386,43397.0,43396.0,0.11233556]
[1646289698121,0.238194,43399.0,43396.0,0.11233556]
[1646289699121,0.42248227,43399.0,43396.0,0.11233556]
[1646289700174,0.23724579,43398.0,43396.0,0.11233556]
[1646289700378,0.29488679,43398.0,43396.0,0.11233556]
[1646289700971,0.23724579,43398.0,43396.0,0.11233556]
[1646289701173,0.238194,43399.0,43396.0,0.11233556]
[1646289713530,0.25128043,43397.0,43396.0,0.11233556]
[1646289713730,0.238194,43399.0,43397.0,0.26063113]
[1646289724385,0.27175404,43398.0,43397.0,0.26063113]
[1646289725189,0.238194,43399.0,43397.0,0.26063113]
[1646289726329,0.238194,43399.0,43398.0,0.26358988]
[1646289727931,0.218194,43399.0,43398.0,0.26358988]
[1646289732971,0.218194,43399.0,43398.0,0.46252884]
[1646289733825,0.218194,43399.0,43398.0,0.5748644]
[1646289734523,0.21793984,43399.0,43398.0,0.5748644]
[1646289735322,0.21793984,43399.0,43398.0,0.6212644]
[1646289735725,0.21793984,43399.0,43398.0,0.8595144]
[1646289736123,0.21793984,43399.0,43398.0,1.1094144]
[1646289737026,0.35547174,43414.0,43404.0,0.057612]
[1646289737223,0.16704975,43415.0,43405.0,0.06942]
[1646289737466,0.49366192,43420.0,43405.0,0.0464]
[1646289738061,0.23,43415.0,43412.0,0.28950399]
[1646289738263,0.23,43415.0,43410.0,0.0464]
[1646289738462,0.21544154,43414.0,43410.0,0.0464]
[1646289739365,0.23,43415.0,43411.0,0.11233556]
[1646289740862,0.225,43415.0,43411.0,0.11233556]
[1646289741131,0.225,43415.0,43411.0,0.11733556]
[1646289741533,0.225,43415.0,43411.0,0.16373556]
[1646289741735,0.225,43415.0,43413.0,0.11233556]
[1646289741932,0.225,43415.0,43414.0,0.057602]
[1646289742533,0.225,43415.0,43413.0,0.11233556]
[1646289742934,0.225,43415.0,43411.0,0.0464]
[1646289743534,0.225,43415.0,43411.0,0.15873556]
[1646289744340,0.225,43415.0,43411.0,0.0464]
[1646289744536,0.225,43415.0,43414.0,0.11233556]
[1646289747160,0.225,43415.0,43414.0,0.11733556]
[1646289748726,0.225,43415.0,43414.0,0.005]
[1646289748925,0.225,43415.0,43414.0,0.11733556]
[1646289749126,0.225,43415.0,43414.0,0.12233556]
[1646289750329,0.225,43415.0,43414.0,0.11233556]
[1646289753278,0.225,43415.0,43414.0,0.15873556]
[1646289753884,0.05,43421.0,43414.0,0.15873556]
[1646289753885,0.05,43421.0,43415.0,1.13665088]
[1646289754082,0.001,43427.0,43420.0,0.11233556]
[1646289754282,0.001,43427.0,43425.0,0.11233556]
[1646289754482,0.001,43427.0,43421.0,0.0464]
[1646289754684,0.16175144,43427.0,43423.0,0.23685592]
[1646289754881,0.16175144,43427.0,43421.0,0.0464]
[1646289755081,0.16175144,43427.0,43421.0,0.1504]
[1646289755382,0.16175144,43427.0,43421.0,0.0504]
[1646289755981,0.16095348,43422.0,43421.0,0.0504]
[1646289756224,0.16095348,43422.0,43421.0,0.1464]
[1646289757020,0.16175144,43427.0,43421.0,0.1464]
[1646289757224,0.001,43427.0,43422.0,0.05759]
[1646289757421,0.001,43427.0,43422.0,0.15873556]
[1646289758618,0.001,43427.0,43422.0,0.0464]
[1646289759220,0.231,43427.0,43422.0,0.0464]
[1646289759619,0.231,43427.0,43422.0,0.103991]
[1646289759872,0.002,43433.0,43422.0,0.103991]
[1646289759873,0.72691595,43482.0,43422.0,0.103991]
[1646289760068,0.01122977,44050.0,43428.0,0.16938756]
[1646289760069,0.00011229,43429.0,43428.0,0.16938756]
[1646289760274,0.00011229,43429.0,43426.0,0.0464]
[1646289760468,0.00011229,43429.0,43427.0,0.0464]
[1646289760672,0.00011229,43429.0,43423.0,0.75]
[1646289760673,0.00011229,43429.0,43428.0,0.1964]
[1646289760872,0.05,43442.0,43428.0,0.21199394]
[1646289761070,0.02301,43459.0,43431.0,0.01507942]
[1646289761071,0.93049,43459.0,43431.0,0.01507942]
[1646289761269,0.93049,43459.0,43430.0,0.00911091]
[1646289761270,0.27398639,43454.0,43446.0,0.25522152]
[1646289761470,0.009216,43449.0,43446.0,0.25522152]
[1646289762268,0.009216,43449.0,43446.0,0.31278652]
[1646289762869,0.009216,43449.0,43443.0,0.0464]
[1646289763069,0.009216,43449.0,43446.0,0.005]
[1646289763470,0.00011219,43448.0,43446.0,0.005]
[1646289764323,0.009216,43449.0,43443.0,0.0464]
[1646289764525,0.00932819,43449.0,43443.0,0.0464]
[1646289765127,0.00932819,43449.0,43443.0,0.0504]
[1646289765327,0.00932819,43449.0,43443.0,0.3358632]
[1646289765525,0.4591677,43449.0,43443.0,0.0504]
[1646289765725,0.00011219,43448.0,43443.0,0.0504]
[1646289766329,0.00011219,43448.0,43443.0,0.0464]
[1646289766728,0.009216,43449.0,43444.0,0.27831433]
[1646289766928,0.009216,43449.0,43441.0,0.01]
[1646289767129,0.00017354,43448.0,43443.0,0.005]
[1646289767962,0.009216,43449.0,43444.0,0.22840745]
[1646289768164,0.00017354,43448.0,43443.0,0.005]
[1646289768362,0.00017354,43448.0,43441.0,0.01]
[1646289769164,0.009216,43449.0,43445.0,0.26856543]
[1646289769365,0.00017354,43447.0,43445.0,0.26856543]
[1646289769767,0.00017354,43447.0,43441.0,0.01]
[1646289770469,0.009216,43449.0,43441.0,0.01]
[1646289770667,0.00017354,43446.0,43442.0,0.2737304]
[1646289770866,0.00017354,43446.0,43442.0,0.0464]
[1646289771934,0.00011235,43446.0,43442.0,0.0464]
[1646289772934,0.4499517,43451.0,43442.0,0.0464]
[1646289773137,0.4499517,43451.0,43444.0,0.27056901]
[1646289773138,0.00011235,43446.0,43444.0,0.27056901]
[1646289773335,0.00011235,43446.0,43442.0,0.21867572]
[1646289773535,0.00011235,43446.0,43441.0,0.01]
[1646289773536,0.07303879,43445.0,43441.0,0.01]
[1646289773739,0.8064057,43444.0,43441.0,0.01]
[1646289774136,0.1,43443.0,43441.0,0.01]
[1646289774334,0.8064057,43442.0,43441.0,0.01]
[1646289774881,0.9064057,43442.0,43441.0,0.01]
[1646289776576,0.9014057,43442.0,43441.0,0.01]
[1646289777179,0.9044057,43442.0,43441.0,0.01]
[1646289778179,0.5529517,43442.0,43441.0,0.01]
[1646289778381,0.9043727,43442.0,43441.0,0.01]
[1646289778626,0.9013727,43442.0,43441.0,0.01]
[1646289779020,1.6085727,43442.0,43441.0,0.01]
[1646289780321,0.9013727,43442.0,43441.0,0.01]
[1646289781526,0.456421,43442.0,43441.0,0.01]
[1646289785273,0.356421,43443.0,43441.0,0.01]
[1646289785474,0.00016195,43444.0,43441.0,0.01]
[1646289785672,0.356421,43443.0,43441.0,0.01]
[1646289786818,0.6457205,43443.0,43441.0,0.01]
[1646289787019,1.0,43442.0,43432.0,0.21954823]
[1646289787221,1.0,43442.0,43432.0,0.21524823]
[1646289787621,0.00016267,43439.0,43432.0,0.21524823]
[1646289788419,1.0,43442.0,43432.0,0.21524823]
[1646289788420,0.16169515,43441.0,43432.0,0.21524823]
[1646289788723,0.00016267,43438.0,43432.0,0.21824823]
[1646289789420,0.00016267,43438.0,43432.0,0.21524823]
[1646289789621,0.2892995,43443.0,43432.0,0.21524823]
[1646289789870,0.00016267,43437.0,43432.0,0.21524823]
[1646289790471,0.00016267,43437.0,43432.0,0.21924823]
[1646289790875,0.1888,43448.0,43432.0,0.21924823]
[1646289791077,0.20485888,43444.0,43437.0,0.26864448]
[1646289791281,0.35950935,43443.0,43437.0,0.26864448]
[1646289791474,0.00308835,43443.0,43437.0,0.26864448]
[1646289792075,0.356421,43447.0,43437.0,0.26864448]
[1646289792272,0.356421,43445.0,43437.0,0.26864448]
[1646289792474,0.00016256,43442.0,43437.0,0.26864448]
[1646289792672,0.00016256,43442.0,43432.0,0.21524823]
[1646289793274,0.003,43443.0,43432.0,0.21524823]
[1646289793474,0.19322098,43443.0,43432.0,0.21524823]
[1646289793717,0.00016257,43439.0,43432.0,0.21524823]
[1646289794517,0.1,43447.0,43432.0,0.21524823]
[1646289794719,0.00016258,43438.0,43432.0,0.21524823]
[1646289795626,0.16590511,43436.0,43430.0,0.6135]
[1646289795819,0.356421,43434.0,43430.0,0.6135]
[1646289796020,0.16590511,43436.0,43428.0,0.4444]
[1646289796021,0.356421,43435.0,43428.0,0.4444]
[1646289796220,0.356421,43433.0,43428.0,0.4444]
[1646289796618,0.356421,43433.0,43429.0,0.24757875]
[1646289797219,0.35658359,43433.0,43428.0,0.4444]
[1646289798070,0.356421,43433.0,43428.0,0.4444]
[1646289798472,0.00216271,43433.0,43428.0,0.4444]
[1646289799272,0.002,43433.0,43428.0,0.8943517]
[1646289799472,0.002,43433.0,43428.0,0.4499517]
[1646289799672,0.00016271,43433.0,43428.0,0.4499517]
[1646289799972,0.00016271,43433.0,43428.0,0.5999517]
[1646289800475,0.32304284,43444.0,43431.0,0.15]
[1646289800676,0.2382,43443.0,43439.0,0.15422017]
[1646289800872,0.45778597,43440.0,43439.0,0.15422017]
[1646289801536,0.45778597,43440.0,43433.0,0.4444]
[1646289801837,0.0464,43447.0,43433.0,0.4444]
[1646289801838,0.356421,43439.0,43433.0,0.4444]
[1646289802039,0.20796319,43443.0,43433.0,0.4444]
[1646289802040,0.356421,43441.0,43433.0,0.4444]
[1646289802435,0.356421,43441.0,43433.0,0.4484]
[1646289802733,0.356421,43441.0,43433.0,0.6466787]
[1646289803036,0.356421,43435.0,43433.0,0.4484]
[1646289804436,0.356421,43435.0,43433.0,0.4444]
[1646289805076,0.356421,43435.0,43433.0,0.7444]
[1646289805277,0.356421,43435.0,43433.0,0.7399739]
[1646289806478,0.359421,43435.0,43433.0,0.3]
[1646289807083,0.359421,43435.0,43433.0,0.47407303]
[1646289807680,0.359421,43435.0,43433.0,0.72524265]
[1646289807879,0.359421,43435.0,43433.0,0.47407303]
[1646289808080,0.356421,43435.0,43433.0,0.3]
[1646289808619,0.360421,43435.0,43433.0,0.3]
[1646289809020,0.54122003,43435.0,43433.0,0.3]
[1646289809821,0.53722003,43435.0,43433.0,0.3]
[1646289810420,0.54122003,43435.0,43433.0,0.3]
[1646289811822,0.53722003,43435.0,43433.0,0.3]
[1646289812224,0.356421,43435.0,43433.0,0.3]
[1646289816444,0.360421,43435.0,43433.0,0.3]
[1646289817745,0.356421,43435.0,43433.0,0.3]
[1646289818545,0.360421,43435.0,43433.0,0.3]
[1646289818746,0.44785018,43434.0,43433.0,0.3]
[1646289818947,0.80427118,43434.0,43433.0,0.3]
[1646289819988,0.5692553,43434.0,43433.0,0.3]
[1646289820193,0.80427118,43434.0,43433.0,0.3]
[1646289820590,0.80827118,43434.0,43433.0,0.3]
[1646289820994,0.360421,43434.0,43433.0,0.3]
[1646289821292,0.80827118,43434.0,43433.0,0.3]
[1646289821494,0.360421,43434.0,43433.0,0.3]
[1646289821893,0.356421,43435.0,43433.0,0.3]
[1646289822598,0.360421,43435.0,43433.0,0.3]
[1646289823836,0.356421,43435.0,43433.0,0.3]
[1646289824238,0.3561553,43435.0,43433.0,0.3]
[1646289824639,0.3591553,43435.0,43433.0,0.3]
[1646289825237,0.44785018,43434.0,43433.0,0.3]
[1646289825540,0.356421,43434.0,43433.0,0.3]
[1646289825939,0.57732814,43434.0,43433.0,0.3]
[1646289826339,0.356421,43434.0,43433.0,0.3]
[1646289826537,0.004,43434.0,43433.0,0.3]
[1646289826738,0.360423,43434.0,43433.0,0.3]
[1646289827137,0.004,43434.0,43433.0,0.3]
[1646289827407,1.0,43433.0,43426.0,0.4444]
[1646289827607,0.85067318,43432.0,43426.0,0.4444]
[1646289827806,0.10144911,43428.0,43426.0,0.4444]
[1646289828108,0.45787211,43427.0,43426.0,0.4444]
[1646289828306,0.72053607,43427.0,43426.0,0.4444]
[1646289828509,0.45783353,43427.0,43426.0,0.4444]
[1646289830006,0.71079959,43427.0,43426.0,0.4444]
[1646289830206,0.65374077,43427.0,43426.0,0.4444]
[1646289830709,0.46183353,43427.0,43426.0,0.4444]
[1646289831831,0.45783353,43427.0,43426.0,0.4444]
[1646289832233,0.356423,43428.0,43426.0,0.4444]
[1646289832431,0.0001485,43429.0,43426.0,0.4444]
[1646289832633,0.356423,43428.0,43427.0,0.26862196]
[1646289832833,0.0001485,43429.0,43427.0,0.26862196]
[1646289833032,0.356423,43428.0,43426.0,0.4444]
[1646289833237,0.0001485,43430.0,43426.0,0.4444]
[1646289833434,0.356423,43429.0,43426.0,0.4444]
[1646289833633,0.0001485,43430.0,43426.0,0.4444]
[1646289834235,0.38699142,43437.0,43427.0,0.44860904]
[1646289834236,0.356423,43428.0,43427.0,0.44860904]
[1646289834438,0.0001485,43430.0,43427.0,0.59860904]
[1646289834634,0.0001485,43430.0,43428.0,0.11518123]
[1646289835479,0.0002,43446.0,43433.0,0.19438369]
[1646289835682,0.00059391,43438.0,43434.0,0.05759094]
[1646289835881,0.356423,43437.0,43434.0,0.05759094]
[1646289836176,0.356423,43437.0,43435.0,0.20717153]
[1646289836378,0.18565166,43436.0,43434.0,0.05759094]
[1646289836577,0.356423,43435.0,43433.0,0.05759452]
[1646289836782,0.8072,43434.0,43424.0,0.7511]
[1646289836980,0.356423,43433.0,43424.0,0.7396]
[1646289837276,0.356423,43428.0,43424.0,0.7396]
[1646289837676,0.356423,43428.0,43425.0,0.15777332]
[1646289840135,0.356423,43434.0,43425.0,0.30777332]
[1646289840335,0.356423,43432.0,43425.0,0.30777332]
[1646289840634,0.0001492,43429.0,43425.0,0.30777332]
[1646289841239,0.0001492,43429.0,43426.0,0.69673016]
[1646289841436,0.002,43429.0,43428.0,0.15]
[1646289841636,0.002,43429.0,43428.0,0.59860904]
[1646289841836,0.002,43429.0,43428.0,0.64500904]
[1646289841837,0.0001,43429.0,43428.0,0.64500904]
[1646289842036,0.00059582,43436.0,43430.0,0.42302]
[1646289842408,0.00059582,43436.0,43435.0,0.56844097]
[1646289842606,0.2407,43444.0,43435.0,0.56844097]
[1646289842806,0.356423,43443.0,43437.0,0.05758679]
[1646289843207,0.356423,43445.0,43437.0,0.05758679]
[1646289843610,0.16159306,43446.0,43437.0,0.05758679]
[1646289843611,0.356423,43442.0,43437.0,0.05758679]
[1646289845212,0.3565992,43442.0,43437.0,0.05758679]
[1646289845416,0.3565992,43442.0,43437.0,0.05858679]
[1646289846228,0.356423,43442.0,43437.0,0.05858679]
[1646289846526,0.3565992,43442.0,43437.0,0.05858679]
[1646289846827,0.3565992,43442.0,43437.0,0.05758679]
[1646289847027,0.3565992,43442.0,43437.0,0.20758679]
[1646289847227,0.0001762,43442.0,43437.0,0.20758679]
[1646289847428,0.356423,43445.0,43437.0,0.20858679]
[1646289847627,0.0001762,43442.0,43437.0,0.20858679]
[1646289848028,0.0001762,43442.0,43440.0,0.15]
[1646289848628,0.356423,43445.0,43440.0,0.15]
[1646289848831,0.00017619,43443.0,43440.0,0.15]
[1646289849428,0.356423,43442.0,43440.0,0.15]
[1646289850981,0.356423,43445.0,43440.0,0.15]
[1646289851183,0.00016898,43443.0,43440.0,0.15]
[1646289851391,0.006,43442.0,43440.0,0.15]
[1646289851581,0.356423,43441.0,43440.0,0.15]
[1646289851782,0.356423,43441.0,43437.0,0.20758679]
[1646289852384,0.356423,43441.0,43439.0,0.25795702]
[1646289852582,0.35659198,43441.0,43437.0,0.20758679]
[1646289852785,0.00016898,43441.0,43437.0,0.20758679]
[1646289853182,0.356423,43440.0,43437.0,0.20758679]